Cogmind - Beta 15 @@@ ROGUE MODE // 2025.09.20 @ 16:05:59 Player: Zaros426 Result: Destroyed by 0B-SOA(R) with Subdweller Laser Performance ------------- Evolutions (0) 0 Regions Visited (3) 600 Robots Destroyed (47) 235 Value Destroyed (776) 776 Prototype IDs (14) 280 Alien Tech Used (0) 0 Bonus (161) 161 TOTAL SCORE: 2052 Bonus ------- Follower Combat Kills 161 Cogmind --------- Core Integrity 0/250 Matter 246/300 Energy 278/280 System Corruption 4% Temperature Cool (6) Movement Treading (560) Ox5 Location -10/Subcaves Parts ------- > --- POWER (1) -------- Heavy Ion Engine (fused) > --- PROPULSION (2) --- Light Treads Light Treads > --- UTILITY (2) ------ Humpback > --- WEAPON (2) ------- Subdweller Machine Gun Subdweller Machine Gun > --- INVENTORY (35) --- Heavy Ion Engine Subdweller Power Source Light Treads Light Treads Improved Treads Improved Treads Improved Treads Improved Treads Compact Wheel Subdweller Monowheel Subdweller Monowheel Flightbrick Huge Storage Unit Large Battery (200) Structural Scanner Subdweller Optics Seismic Detector Transport Network Coupler Hardened Light Armor Plating Shield Generator Makeshift System Shield Subdweller Laser Particle Cannon Particle Cannon Barrage Gun Grenade Launcher Dirty Datajack Datajack Multitool Ripper Makeshift Spear Shrapnel Trap Peak State ------------ > --- POWER ------------ Heavy Ion Engine > --- PROPULSION ------- Compact Wheel Subdweller Monowheel > --- UTILITY ---------- Humpback > --- WEAPON ----------- Particle Cannon Subdweller Machine Gun > --- INVENTORY -------- Heavy Ion Engine Light Treads Light Treads Light Treads Light Treads Improved Treads Improved Treads Improved Treads Improved Treads Wheel Subdweller Monowheel Flightbrick Huge Storage Unit Large Battery Structural Scanner Terrain Scanner Seismic Detector Transport Network Coupler Hardened Light Armor Plating Shield Generator Makeshift System Shield Subdweller Laser Particle Cannon Subdweller Machine Gun Barrage Gun Battle Cannon Grenade Launcher Dirty Datajack Datajack Multitool Makeshift Spear Shrapnel Trap [Rating: 21] Favorites ----------- Power Heavy Ion Engine Engine Heavy Ion Engine Propulsion Compact Wheel Treads Light Treads Wheel Compact Wheel Utility Huge Storage Unit Device Shield Generator Storage Huge Storage Unit Protection Hardened Light Armor Plating Weapon Particle Cannon Energy Gun Small Laser Energy Cannon Particle Cannon Ballistic Gun Subdweller Machine Gun Special Weapon Mining Laser Build | -11 -10 -10 -10 ------- Run | Yrd Mat Min Sub Slots Evolved . | . . . . Power . | . . . . Propulsion . | . . . . Utility . | . . . . Weapon . | . . . . Parts Attached 36 | 4 17 7 8 Power 4 | . 3 1 . Engine 4 | . 3 1 . Core . | . . . . Reactor . | . . . . Propulsion 11 | 2 3 5 1 Treads 7 | 2 1 4 . Leg . | . . . . Wheel 4 | . 2 1 1 Hover . | . . . . Flight . | . . . . Utility 12 | . 7 1 4 Device 6 | . 3 1 2 Storage 3 | . 2 . 1 Processor . | . . . . Hackware . | . . . . Protection 3 | . 2 . 1 Artifact . | . . . . Weapon 9 | 2 4 . 3 Energy Gun 1 | 1 . . . Energy Cannon 4 | . 3 . 1 Ballistic Gun 3 | 1 . . 2 Ballistic Cannon . | . . . . Launcher . | . . . . Special Weapon 1 | . 1 . . Impact Weapon . | . . . . Slashing Weapon . | . . . . Piercing Weapon . | . . . . Special Melee Weapon . | . . . . Unidentified Prototypes 1 | . 1 . . Parts Lost 2 | . 1 1 . Power . | . . . . Propulsion 1 | . . 1 . Utility 1 | . 1 . . Weapon . | . . . . Highest Loss Streak 1 | . 1 1 . To Critical Strikes . | . . . . Average Backups 22 | 1 19 24 25 Power 1 | . 1 1 1 Propulsion 7 | . 5 7 9 Utility 9 | . 8 11 8 Weapon 3 | . 2 3 4 Tool/Special . | . . . . Unused Backups 27 | . 3 1 23 Power 2 | . 1 . 1 Propulsion 6 | . . . 6 Utility 8 | . . 1 7 Weapon 8 | . 2 . 6 Tool/Special 3 | . . . 3 Average Slot Usage (%) 96 | . 99 100 92 Engine 13 | . 13 14 14 Treads 6 | . 12 8 . Wheel 21 | . 15 19 27 Device 11 | . 13 14 6 Storage 13 | . 12 14 14 Protection 1 | . . . 2 Energy Cannon 22 | . 25 28 16 Ballistic Gun 3 | . . . 9 Peak Build Rating 21 | 4 16 16 21 Average Rating 15 | 3 14 15 15 On Entrance 8 | . 4 16 15 Naked Turns . | . . . . Heaviest Build 216 | 3 101 98 216 Greatest Support 40 | 3 32 40 36 Greatest Overweight (x) 8 | . 6 6 8 Average Overweight (x) 4 | . 4 3 4 Largest Inventory Capacity 35 | 5 25 25 35 Average Capacity 25 | 5 23 25 28 Most Carried 35 | 4 25 25 35 Average Carried 23 | 1 19 24 26 Final Capacity 35 | 5 25 25 35 Final Carried 35 | 4 25 25 35 Class Distribution -------------------- 80% | Mutant 12% | Hauler-Mutant 6% | Scavenger-Mutant Dominant Class ---------------- Mutant | -10/Materials Mutant | -10/Mines Mutant | -10/Subcaves Resources | -11 -10 -10 -10 ----------- Run | Yrd Mat Min Sub Matter Collected 1372 | 264 504 196 408 Remotely . | . . . . Salvage Created 1529 | 123 818 258 330 Parts 108 | 5 60 29 14 Haulers Intercepted 2 | . 2 . . Recyclers Shooed 3 | . 3 . . Parts Field Recycled . | . . . . Retrieved Matter . | . . . . Parts Self-Destructed 4 | . . . 4 Prevented . | . . . . Kills | -11 -10 -10 -10 ------- Run | Yrd Mat Min Sub Combat Hostiles Destroyed 27 | . 15 7 5 Guns 2 | . . . 2 Cannons 25 | . 15 7 3 Classes Destroyed 10 | 2 6 . 2 Worker 5 | . 1 4 . Builder 5 | . 4 1 . Tunneler 3 | 1 1 1 . Hauler 2 | . 2 . . Recycler 3 | 1 2 . . Watcher 2 | . 2 . . Swarmer 14 | . 9 5 . Grunt 8 | . 6 2 . Artisan 1 | . . . 1 Subdweller 5 | . . . 5 Best Kill Streak 5 | 2 5 2 1 Combat Bots Only 3 | . 3 2 1 Max Kills in Single Turn 1 | 1 1 1 1 Gunslinging . | . . . . Exploded . | . . . . Melee . | . . . . Uniques/NPCs Destroyed . | . . . . Combat | -11 -10 -10 -10 -------- Run | Yrd Mat Min Sub Hostile Shots Fired 95 | . 64 10 21 Missed 25 | . 15 4 6 Hits 70 | . 49 6 15 Projectile 70 | . 49 6 15 AOE 1 | . . . 1 Damage Taken 896 | . 419 60 417 Core 252 | . 115 . 137 Absorbed by Shields 68 | . 63 5 . Core Remaining (%) 100 | 100 . . . Volleys Fired 152 | 8 61 25 58 Largest 2 | 2 2 2 2 Hottest 136 | 60 136 136 136 Shots Fired 291 | 16 111 51 113 Gun 56 | 16 6 . 34 Cannon 225 | . 96 51 78 Launcher . | . . . . Special 10 | . 9 . 1 Kinetic 45 | 8 3 . 34 Thermal 246 | 8 108 51 79 Explosive . | . . . . Electromagnetic . | . . . . Robot Hit Streak 14 | 6 14 5 13 Robot Miss Streak 5 | 2 5 4 2 Penetration Max . | . . . . Secondary Targets . | . . . . Shots Hit Robots 149 | 10 61 19 59 Core Hits 59 | 3 28 14 14 Critical Kills . | . . . . Critical Parts Destroyed . | . . . . Critical Strikes . | . . . . Melee Attacks . | . . . . Impact . | . . . . Slashing . | . . . . Piercing . | . . . . Sneak Attacks . | . . . . Combat Hostiles . | . . . . Follow-up Attacks . | . . . . Damage Inflicted 3073 | 119 1344 449 1161 Guns 633 | 119 48 . 466 Cannons 2416 | . 1272 449 695 Explosions . | . . . . Melee . | . . . . Ramming . | . . . . Kinetic 589 | 87 36 . 466 Thermal 2484 | 32 1308 449 695 Explosive . | . . . . Electromagnetic . | . . . . Impact . | . . . . Slashing . | . . . . Piercing . | . . . . Highest Corruption 4 | . 4 4 4 Average Corruption 3 | . 3 4 4 Corruption Purged . | . . . . Corruption Blocked . | . . . . Effects 97 | . 26 24 47 Message Errors 28 | . 7 10 11 Matter Fused 21 | . 6 5 10 Heat Flow Errors 11 | . 5 2 4 Energy Discharges 12 | . 1 1 10 Parts Fused 1 | . . . 1 Data Loss (minor) 14 | . 5 3 6 Data Loss (major) 5 | . 1 2 2 Misfires 3 | . . 1 2 Alerts 1 | . 1 . . Weapon Failures 1 | . . . 1 Overload Shots . | . . . . Overflow Damage 43 | . 31 . 12 Projectiles 43 | . 31 . 12 Explosions . | . . . . Melee . | . . . . Knockbacks . | . . . . Impact . | . . . . Kinetic . | . . . . Secondary . | . . . . Self-Inflicted Damage . | . . . . Shots . | . . . . Rammed . | . . . . Targets Rammed . | . . . . Kicked . | . . . . Crushed . | . . . . Highest Temperature 312 | . 312 234 306 Average Temperature 85 | . 112 54 48 Received Heat Transfer 247 | . 97 18 132 Effects 8 | . 7 . 1 Shutdowns 1 | . 1 . . Energy Bleed 4 | . 3 . 1 Interference 3 | . 3 . . Siege Activations . | . . . . Martial Activations . | . . . . Shielding Activations . | . . . . Robots Disrupted . | . . . . Combat Hostiles . | . . . . Robots Corrupted . | . . . . Combat Hostiles . | . . . . Parts Fried . | . . . . Impact Corruptions . | . . . . Robots Melted . | . . . . Combat Hostiles . | . . . . Parts Melted 7 | . 3 1 3 Heat Transferred 4405 | 75 2295 777 1258 Parts Sabotaged . | . . . . Parts Stolen . | . . . . Parts Stripped . | . . . . Power Chain Reactions . | . . . . Alert | -11 -10 -10 -10 ------- Run | Yrd Mat Min Sub Maximum Alert Level 1 | . 1 1 . Low Security (%) 91 | 100 85 99 . Level 1 8 | . 14 . . Level 2 . | . . . . Level 3 . | . . . . Level 4 . | . . . . Level 5 . | . . . . High Security . | . . . . Max Security . | . . . . Peak Influence 222 | 5 222 203 . Initial 81 | . . 81 . Average 68 | 1 58 85 . Influence Increases 1061 | 10 583 468 . Destroy 0b10 Robot/C 580 | . 300 280 . Destroy 0b10 Robot/NC 100 | 10 60 30 . Destroy Leader 108 | . 68 40 . Allied During Kill 38 | . . 38 . Successful Hack 40 | . 40 . . Select Force Hacks 60 | . 60 . . Disable Machine 30 | . . 30 . Destroy Structure 30 | . 10 20 . Lose Combat Pursuer 75 | . 45 30 . Influence Decreases 1061 | 10 374 656 21 Entered New Map 140 | . . 128 12 Time Decay 901 | 10 364 518 9 Lost Part 20 | . 10 10 . Squads Dispatched 3 | . 3 . . Investigation 2 | . 2 . . Extermination . | . . . . Reinforcement 1 | . 1 . . Assault . | . . . . Garrison . | . . . . Intercept . | . . . . Searches Triggered . | . . . . Construction Impeded . | . . . . Haulers Reinforced . | . . . . Active Scanning Responses . | . . . . Cargo Convoy Interrupts . | . . . . Stealth | -11 -10 -10 -10 --------- Run | Yrd Mat Min Sub Distress Signals . | . . . . Communications Jammed . | . . . . Distress Signals . | . . . . Times Spotted 46 | . 25 13 8 Peak Tracking Total 4 | . 3 4 2 Tactical Retreats 4 | . 2 2 . Traps | -11 -10 -10 -10 ------- Run | Yrd Mat Min Sub Traps Triggered 5 | . 5 . . Indirectly . | . . . . Trap Hack Attempts . | . . . . Triggered . | . . . . Disarmed . | . . . . Reprogrammed . | . . . . Reused . | . . . . Traps Extracted . | . . . . Installed . | . . . . Triggered . | . . . . Most Traps Carried 1 | . . . 1 Machines | -11 -10 -10 -10 ---------- Run | Yrd Mat Min Sub Machines Disabled 4 | . . 3 1 Max in Single Turn 2 | . . 2 1 Machines Repaired . | . . . . Machines Dismantled . | . . . . Machines Sabotaged . | . . . . Overloaded Fab Kills . | . . . . Hacking | -11 -10 -10 -10 --------- Run | Yrd Mat Min Sub Machines Accessed 11 | . 9 . 2 Terminals 7 | . 7 . . Fabricators . | . . . . Repair Stations . | . . . . Recycling Units 2 | . 2 . . Scanalyzers . | . . . . Garrison Access . | . . . . Total Hacks 41 | . 28 . 13 Successful 32 | . 19 . 13 Failed 9 | . 9 . . Catastrophic . | . . . . Database Lockouts . | . . . . Manual 27 | . 27 . . Terminals 26 | . 26 . . Fabricators . | . . . . Repair Stations . | . . . . Recycling Units 2 | . 2 . . Scanalyzers . | . . . . Garrison Access . | . . . . Terminal Hacks 21 | . 8 . 13 Record 12 | . . . 12 Part Schematic 2 | . 2 . . Robot Analysis 2 | . 2 . . Prototype ID Bank 1 | . 1 . . Terminal Index 1 | . 1 . . Patrol Status 2 | . 2 . . Proto ID Catalog 1 | . . . 1 Fabricator Hacks . | . . . . Repair Station Hacks . | . . . . Recycling Unit Hacks . | . . . . Scanalyzer . | . . . . Garrison Access Hacks . | . . . . Unauthorized Hacks 11 | . 11 . . Terminals 9 | . 9 . . Botnet 3 | . 3 . . Operators 1 | . 1 . . Skim 5 | . 5 . . Fabricators . | . . . . Repair Stations . | . . . . Recycling Units 2 | . 2 . . Tunnel 2 | . 2 . . Scanalyzers . | . . . . Garrison Access . | . . . . Data Cores Recovered . | . . . . Used . | . . . . Hacking Detections 6 | . 6 . . Full Trace Events . | . . . . Feedback Events . | . . . . Feedback Blocked . | . . . . Robot Schematics Acquired . | . . . . Robots Built . | . . . . Authchips . | . . . . Time . | . . . . Total Robot Build Rating . | . . . . Part Schematics Acquired 2 | . 2 . . Parts Built . | . . . . Authchips . | . . . . Time . | . . . . Total Part Build Rating . | . . . . Parts Repaired . | . . . . Time . | . . . . Parts Recycled . | . . . . Recycled Matter . | . . . . Retrieved Matter . | . . . . Retrieved Components . | . . . . Parts Scanalyzed . | . . . . Part Schematics Acquired . | . . . . Parts Damaged . | . . . . Bothacking | -11 -10 -10 -10 ------------ Run | Yrd Mat Min Sub Used RIF Installer . | . . . . Robots Hacked . | . . . . Non-combat . | . . . . Combat . | . . . . Robot Hacks Applied . | . . . . Relay Couplers Released . | . . . . Fabnet Peak Effective % . | . . . . Robots Rewired . | . . . . Allies Hacked . | . . . . Hacks Repelled . | . . . . Allies | -11 -10 -10 -10 -------- Run | Yrd Mat Min Sub Total Allies 3 | . . 3 . Largest Group 3 | . . 3 2 Highest-Rated Group 40 | . . 40 32 Highest-Rated Ally 16 | . . 16 16 Total Orders . | . . . . Ally Attacks 36 | . . 21 15 Total Damage 442 | . . 219 223 Kills 10 | . . 8 2 Allies Corrupted . | . . . . Allies Melted . | . . . . Intel | -11 -10 -10 -10 ------- Run | Yrd Mat Min Sub Active Infowar (turns) 1035 | . . . 1035 Structural 344 | . . . 344 Seismic 691 | . . . 691 Robot Analysis Total 2 | . 2 . . Derelict Logs Recovered 3 | . . 2 1 Drone Launches . | . . . . Drone Recoveries . | . . . . Exploration | -11 -10 -10 -10 ------------- Run | Yrd Mat Min Sub Turns Passed 5749 | 62 2100 1423 2164 Spaces Moved 2676 | 42 825 606 1203 Core 54 | 42 12 . . Treads 184 | . 56 128 . Legs . | . . . . Wheels 2438 | . 757 478 1203 Hover . | . . . . Flight . | . . . . Fastest Speed 50 | 50 50 135 135 Average Speed 172 | 50 178 214 151 Slowest Speed 480 | 50 480 480 210 Overloaded Moves . | . . . . Propulsion Burnouts . | . . . . Robots Hopped . | . . . . Potential Cave-ins . | . . . . Cave-ins Triggered . | . . . . Exploration Rate (%) 63 | 3 98 99 53 Regions Visited 3 Branch Regions 2 Pre-discovered Areas 7 | . 5 1 1 Known Exits Taken . | . . . . Unknown Exits Taken 3 | 1 1 1 . Scrap Searched 4 | . . 1 3 Spaces Dug 4 | . 4 . . Terrain Destroyed 28 | . 5 22 1 Melee . | . . . . Projectile 6 | . 5 . 1 AOE 22 | . . 22 . Terrain Rammed . | . . . . Walls Destroyed . | . . . . Machines Disabled . | . . . . Actions | -11 -10 -10 -10 --------- Run | Yrd Mat Min Sub Total 3483 | 64 1317 677 1425 Wait 466 | 6 356 23 81 Move 2673 | 41 824 605 1203 Hop . | . . . . Pick Up 78 | 5 31 5 37 Fast Attach 16 | 3 10 . 3 Attach 10 | 1 5 2 2 Detach . | . . . . Swap 57 | . 19 11 27 Drop 31 | . 11 6 14 Fire 152 | 8 61 25 58 Melee . | . . . . Ram . | . . . . Kick . | . . . . Crush . | . . . . Escape Stasis . | . . . . Rewire . | . . . . Trap . | . . . . Miscellaneous . | . . . . Route ------- -11/Scrapyard -10/Materials (discovered 5 exits: [*Mat x3] / [*Min] / *Sub) -10/Mines (discovered 3 exits: [*Mat x2] / *Sub) -10/Subcaves (discovered 3 exits: [*Mat] / [Rec] / [*Scr]) History --------- Turn | Location | Event 6 | -11/Scrapyard | Discovered new exit (range 16) 63 | -11/Scrapyard | Entered Materials 181 | -10/Materials | Discovered new exit (range 11) 315 | -10/Materials | Build established: Mutant 386 | -10/Materials | Discovered new exit (range 14) 758 | -10/Materials | Discovered new exit (range 8) 1023 | -10/Materials | Discovered new exit (range 15) 1600 | -10/Materials | Discovered new exit (range 16) 1745 | -10/Materials | Loaded intel: 8 terminal locations 1814 | -10/Materials | Loaded intel: 1 repair station location 1875 | -10/Materials | Learned location of Subcaves (-10) 1927 | -10/Materials | Learned location of Mines (-9) 1997 | -10/Materials | Loaded intel: 19 trap records 2037 | -10/Materials | Loaded intel: 2 recycling unit locations 2089 | -10/Materials | Learned 2 Mines zone layouts 2152 | -10/Materials | Learned location of 1 exit from Recycling 2163 | -10/Materials | Entered Mines 2168 | -10/Mines | Learned Materials terminal intel 2169 | -10/Mines | Assisted by bots powering up and referring to "LRC-V3" 2197 | -10/Mines | Met a Derelict bent on vengeance 2215 | -10/Mines | Discovered new exit (range 5) 2374 | -10/Mines | Discovered new exit (range 15) 2992 | -10/Mines | Learned location of Storage (-8) 3568 | -10/Mines | Discovered new exit (range 9) 3586 | -10/Mines | Entered Subcaves 3586 | -10/Subcaves | Accompanied by 2 allies 3587 | -10/Subcaves | Approached by a straggling Scientist 3633 | -10/Subcaves | Scientist uncovered a shortcut to Scraptown 3671 | -10/Subcaves | Core integrity fell below 50% 3713 | -10/Subcaves | Discovered new exit (range 15) 3729 | -10/Subcaves | Visited Clippyterm 3734 | -10/Subcaves | Learned location of Section 7 (-2) 3799 | -10/Subcaves | Shifting Twisted Machinery released Mak. Light Armor Plating 4081 | -10/Subcaves | Disturbed a concealed Subdweller 4169 | -10/Subcaves | Shifting Twisted Machinery released Mak. System Shield 4178 | -10/Subcaves | Shifting Twisted Machinery released Battle Cannon 4212 | -10/Subcaves | A swath of the cavern ceiling suddenly collapsed 4242 | -10/Subcaves | Shifting Twisted Machinery released Mak. Light Armor Plating 4386 | -10/Subcaves | Core integrity fell below 20% 4561 | -10/Subcaves | Shifting Twisted Machinery released Shrapnel Trap 4640 | -10/Subcaves | Build established: Scavenger-Mutant 4710 | -10/Subcaves | Discovered new exit (range 7) 4962 | -10/Subcaves | Learned Materials emergency access door positions 4983 | -10/Subcaves | Build established: Mutant 4987 | -10/Subcaves | Visited 4L-MR0's lab 5195 | -10/Subcaves | Found Flightbrick 5332 | -10/Subcaves | Build established: Hauler-Mutant 5750 | -10/Subcaves | Destroyed by 0B-SOA(R) with Subdweller Laser Last Messages --------------- 05384_ System corrupted: Component data lost. 05430_ System corrupted: Heat flow error (+173). 05437_ Acquired Multitool. 05452_ System corrupted: Matter fused (-5). 05468_ System corrupted: Energy discharge (-98). 05484_ Acquired Battle Cannon. 05502_ Acquired Sub. Laser. 05530_ Acquired Sub. Monowheel. 05541_ :CAQKZOFVOVP6QRWHHUNALXG#T TA SD 05545_ Dropped Wheel. 05546_ Acquired Ripper. 05627_ Dropped Terrain Scanner. 05628_ Acquired Sub. Power Source. 05629_ Acquired 15 matter. 05632_ Subatomizers dissect the Hrd. Light Armor Plating. 05632_ Dropped Battle Cannon. 05633_ Acquired Sub. Optics. 05634_ System corrupted: Energy discharge (-112). 05705_ Z2UQCNUX ZUHMHX:ND&N3EZ< Map ----- +----------------------------------------------------+ | ???????????????????# ##????#### | | ???????????????????# #???## ## | | ???????????????????# ###### ## | | ??????????????????## ## # # | | ??????????????????# ## # | | ??????????????????# ## ##" | | ??????????????????## ## ### | | ???????????????????#####""###### #?## | | ???????????????????????#""" ??## "#??## | | ???????????????????????##""##?#" "#????# | | ????????????????????????####?##"" #???## | | ????????????????????????????##"" #??## | | ??????????????????????###?###" #### | | ??????????????????????#""##"" "" " | | ????????????????????### """" " """"" | | ????????????????????# # """! ### | | ????????????????????# """"" #?# | | ??????????????????#### ##""""##?# | | ?????????????????## ### ##" ""#### | | ??????????????#### #??##* ## """" # | | ???????????#### ## ##### = "" # | | ???????????# & # # #### ## | | ???????????# & <%& #####??###? | | ???????????# % !& ##?????????? | | ???????????#<